bitfinex-derivatives/quotes_BTCF0:USTF0_20241227
["timestamp","ask_amount","ask_price","bid_price","bid_amount"]
[1735325864994,0.05288,94688.0,94681.0,0.25238639]
[1735325865795,0.05288,94688.0,94687.0,0.001]
[1735325866403,0.41368,94688.0,94687.0,0.001]
[1735325867293,0.41368,94688.0,94681.0,0.02353889]
[1735325867493,0.41368,94688.0,94681.0,0.02053889]
[1735325867897,0.41368,94688.0,94681.0,0.01853889]
[1735325868097,0.41368,94688.0,94687.0,0.001]
[1735325868489,0.3608,94688.0,94687.0,0.001]
[1735325868897,0.3608,94688.0,94683.0,0.052883]
[1735325869199,0.3608,94688.0,94687.0,1.5]
[1735325870097,0.15850351,94694.0,94687.0,1.5]
[1735325870292,0.3608,94705.0,94692.0,0.3608]
[1735325870502,0.3608,94705.0,94699.0,0.052873]
[1735325870698,0.3608,94705.0,94700.0,0.0728]
[1735325870884,0.3608,94705.0,94700.0,0.125673]
[1735325871788,0.3628,94705.0,94700.0,0.125673]
[1735325872398,0.3628,94705.0,94702.0,0.052872]
[1735325872989,0.3688,94705.0,94702.0,0.052872]
[1735325873397,0.3628,94705.0,94702.0,0.052872]
[1735325873592,0.3698,94705.0,94702.0,0.053872]
[1735325873990,0.009,94705.0,94703.0,0.052871]
[1735325874196,0.3608,94716.0,94712.0,0.052866]
[1735325874701,0.3608,94716.0,94713.0,1.5]
[1735325874895,0.052857,94729.0,94713.0,1.8608]
[1735325875096,0.052857,94729.0,94716.0,0.052864]
[1735325875298,0.3608,94722.0,94716.0,0.052864]
[1735325876200,0.3608,94722.0,94716.0,0.053864]
[1735325876402,0.3608,94722.0,94716.0,0.001]
[1735325876604,0.052864,94718.0,94713.0,0.36144]
[1735325876804,0.052864,94718.0,94716.0,0.001]
[1735325878295,0.056864,94718.0,94716.0,0.001]
[1735325878495,0.004,94718.0,94699.0,0.25238639]
[1735325878696,0.05287,94707.0,94699.0,0.25238639]
[1735325878895,0.05287,94707.0,94699.0,0.2709872]
[1735325879089,0.05287,94707.0,94699.0,0.01860081]
[1735325879293,0.05287,94707.0,94692.0,1.553477]
[1735325879606,0.05287,94707.0,94692.0,1.552877]
[1735325880705,0.05287,94707.0,94697.0,0.10737817]
[1735325880897,0.05287,94707.0,94692.0,1.553477]
[1735325881097,0.05287,94707.0,94692.0,1.552877]
[1735325881295,0.052871,94705.0,94692.0,1.57152043]
[1735325882401,0.001,94707.0,94697.0,0.3608]
[1735325882591,0.3608,94700.0,94688.0,0.25238639]
[1735325882799,0.088674,94699.0,94688.0,0.25238639]
[1735325883401,0.088674,94699.0,94689.0,0.10737817]
[1735325883900,0.0358,94699.0,94692.0,0.052877]
[1735325885302,0.0368,94699.0,94692.0,0.052877]
[1735325885499,0.0368,94699.0,94691.0,0.3608]
[1735325888305,0.001,94699.0,94691.0,0.3608]
[1735325889810,0.001,94699.0,94698.0,0.052874]
[1735325890410,0.001,94699.0,94698.0,1.552874]
[1735325891712,0.004,94699.0,94698.0,1.552874]
[1735325892210,0.005,94699.0,94698.0,1.80526039]
[1735325892611,0.00368831,94699.0,94698.0,1.80526039]
[1735325893013,0.00368831,94699.0,94698.0,1.57014638]
[1735325895919,0.00368831,94699.0,94698.0,1.51727238]
[1735325897905,0.03958831,94699.0,94698.0,1.51727238]
[1735325898705,0.052879,94691.0,94687.0,0.61318639]
[1735325898918,0.11518831,94699.0,94687.0,0.61318639]
[1735325899119,0.052879,94690.0,94688.0,1.5]
[1735325899603,0.052879,94690.0,94687.0,0.26945806]
[1735325899808,0.052879,94690.0,94687.0,0.01807167]
[1735325900309,0.052879,94690.0,94687.0,0.01907167]
[1735325900509,0.052879,94690.0,94688.0,0.001]
[1735325901012,0.05288,94688.0,94687.0,0.002]
[1735325902119,0.05288,94688.0,94687.0,0.001]
[1735325902319,0.05288,94688.0,94687.0,0.002]
[1735325902513,0.052884,94682.0,94677.0,0.25238639]
[1735325902711,0.0752,94681.0,94677.0,0.25238639]
[1735325903021,0.0752,94681.0,94677.0,0.26964285]
[1735325903221,0.0752,94681.0,94678.0,1.5]
[1735325903424,0.0732,94681.0,94678.0,1.5]
[1735325905629,0.0732,94681.0,94678.0,1.505]
[1735325905813,0.0732,94681.0,94678.0,1.508]
[1735325906318,0.3608,94679.0,94678.0,1.508]
[1735325906915,0.3608,94679.0,94678.0,0.008]
[1735325907616,0.37771152,94679.0,94678.0,0.008]
[1735325908522,0.3608,94679.0,94678.0,0.008]
[1735325915224,0.3608,94679.0,94678.0,1.508]
[1735325916831,0.3608,94679.0,94678.0,0.008]
[1735325923142,0.4002,94679.0,94678.0,0.008]
[1735325924431,0.3608,94679.0,94678.0,0.008]
[1735325924933,0.3608,94679.0,94678.0,1.508]
[1735325928838,0.3608,94679.0,94678.0,0.008]
[1735325929036,0.05445933,94698.0,94685.0,0.052881]
[1735325929346,0.05445933,94698.0,94678.0,0.008]
[1735325929347,0.00158433,94698.0,94686.0,1.5793]
[1735325929551,0.00158433,94698.0,94690.0,0.052878]
[1735325930842,0.3618,94692.0,94690.0,0.052878]
[1735325931949,0.3618,94692.0,94687.0,0.18941693]
[1735325932340,0.3618,94692.0,94686.0,1.76935693]
[1735325932543,0.3618,94692.0,94686.0,1.76871693]
[1735325933449,0.3608,94692.0,94686.0,1.77071693]
[1735325933649,0.3608,94692.0,94686.0,0.27071693]
[1735325934156,0.3608,94692.0,94686.0,0.19141693]
[1735325934342,0.05288,94688.0,94686.0,0.19141693]
[1735325934539,0.05288,94688.0,94686.0,0.002]
[1735325934944,0.3608,94687.0,94686.0,0.002]
[1735325936040,0.3608,94687.0,94686.0,0.001]
[1735325936245,0.3608,94687.0,94686.0,0.002]
[1735325945360,0.052886,94677.0,94670.0,0.25255591]
[1735325945654,0.052893,94664.0,94656.0,0.3775156]
[1735325945849,0.72216001,94671.0,94656.0,0.3775156]
[1735325946158,0.72216001,94671.0,94653.0,0.31583058]
[1735325946159,0.052899,94654.0,94653.0,0.31583058]
[1735325946358,0.413699,94654.0,94653.0,0.31583058]
[1735325946652,0.409699,94654.0,94653.0,0.31583058]
[1735325946852,0.400699,94654.0,94653.0,0.31583058]
[1735325947455,0.052906,94642.0,94638.0,0.00158502]
[1735325947658,0.413707,94639.0,94638.0,0.01889595]
[1735325948556,0.411707,94639.0,94638.0,0.01889595]
[1735325948961,0.410707,94639.0,94638.0,0.01889595]
[1735325949169,0.411707,94639.0,94638.0,0.02089595]
[1735325949962,0.411707,94639.0,94638.0,0.02489595]
[1735325950962,0.5065056,94639.0,94638.0,0.02489595]
[1735325952261,0.411707,94639.0,94638.0,0.02489595]
[1735325957560,0.3588,94639.0,94638.0,0.02489595]
[1735325958164,0.3588,94639.0,94638.0,1.52489595]
[1735325964668,0.3588,94639.0,94638.0,0.02489595]
[1735325974873,0.4853683,94639.0,94638.0,0.02489595]
[1735325976169,0.3588,94639.0,94638.0,0.02489595]
[1735325980081,0.48577051,94639.0,94638.0,0.02489595]
[1735325981977,0.3588,94639.0,94638.0,0.02489595]
[1735325984676,0.4102682,94639.0,94638.0,0.02489595]
[1735325986182,0.4102682,94639.0,94638.0,0.02331093]
[1735325987175,0.4102682,94639.0,94625.0,0.31645949]
[1735325987480,0.052918,94620.0,94610.0,0.3608]
[1735325987682,0.052918,94620.0,94615.0,0.0152371]
[1735325988085,0.052918,94620.0,94600.0,0.1]
[1735325988283,0.051918,94620.0,94600.0,0.1]
[1735325988588,0.1033862,94620.0,94619.0,0.0015852]
[1735325988980,0.1043862,94620.0,94619.0,0.0025852]
[1735325989686,0.1043862,94620.0,94619.0,0.001]
[1735325989988,0.1043862,94620.0,94619.0,0.004]
[1735325991082,0.29446857,94620.0,94619.0,0.004]
[1735325991787,0.30903911,94620.0,94619.0,0.004]
[1735325992691,0.06748854,94620.0,94619.0,0.004]
[1735325994294,0.19411201,94620.0,94619.0,0.004]
[1735325996085,0.17954147,94620.0,94619.0,0.004]
[1735325996489,0.12762347,94620.0,94619.0,0.004]
[1735325996694,0.12762347,94620.0,94619.0,0.056918]
[1735325996994,0.001,94620.0,94619.0,1.635818]
[1735325998483,0.001,94620.0,94619.0,1.504]
[1735325998691,0.001,94620.0,94619.0,0.004]
[1735326000494,0.09592408,94620.0,94619.0,0.004]
[1735326002192,0.001,94620.0,94619.0,0.004]
[1735326004998,0.15820944,94620.0,94619.0,0.003]
[1735326005388,0.15820944,94620.0,94614.0,0.052921]
[1735326005592,0.3588,94615.0,94614.0,0.052921]
[1735326005900,0.052922,94612.0,94611.0,0.0786]
[1735326006592,0.410722,94612.0,94611.0,0.0786]
[1735326006793,0.410722,94612.0,94610.0,0.01485485]
[1735326006993,0.052924,94609.0,94600.0,0.152929]
[1735326007591,0.052925,94608.0,94600.0,0.1]
[1735326007984,0.3608,94602.0,94600.0,0.11504238]
[1735326008187,0.3608,94602.0,94591.0,0.25228115]
[1735326008188,0.413728,94602.0,94591.0,0.25228115]
[1735326008501,0.05294,94581.0,94566.0,0.49326358]
[1735326008701,0.052941,94579.0,94576.0,0.3775156]
[1735326008892,0.052942,94578.0,94576.0,0.3775156]
[1735326009212,0.3608,94580.0,94576.0,0.3775156]
[1735326009698,0.001,94602.0,94594.0,0.052932]
[1735326009902,0.001,94602.0,94595.0,0.0787]
[1735326010103,0.001,94602.0,94596.0,0.413731]
[1735326010305,0.19008237,94597.0,94596.0,0.3608]
[1735326010497,0.19008237,94597.0,94595.0,0.0787]
[1735326011210,0.19008237,94597.0,94596.0,0.052931]
[1735326011598,0.09488472,94606.0,94596.0,0.052931]
[1735326012201,0.09488472,94606.0,94596.0,0.10737817]
[1735326012705,0.45624473,94611.0,94605.0,0.052926]
[1735326012904,0.45568472,94611.0,94605.0,0.052926]
[1735326013405,0.12651297,94616.0,94605.0,0.3]
[1735326013601,0.12651297,94616.0,94612.0,0.052922]
[1735326013804,0.12651297,94616.0,94613.0,0.0403]
[1735326014004,0.12651297,94621.0,94613.0,0.0403]
[1735326014905,0.001,94616.0,94613.0,0.0403]
[1735326015198,0.001,94616.0,94605.0,0.01432541]
[1735326015390,0.10737817,94615.0,94587.0,0.0006]
[1735326015595,0.10737817,94615.0,94580.0,0.48489377]
[1735326015596,0.05293,94599.0,94588.0,0.0378]
[1735326015797,0.05293,94599.0,94589.0,0.3608]
[1735326016714,0.10737817,94605.0,94589.0,0.3608]
[1735326016999,0.3608,94598.0,94585.0,0.0006]
[1735326017197,0.052937,94587.0,94578.0,0.0781]
[1735326017398,0.052937,94587.0,94579.0,1.5]
[1735326018103,0.3608,94584.0,94579.0,1.5]
[1735326019108,0.3618,94584.0,94579.0,1.5]
[1735326019900,0.3628,94584.0,94579.0,1.5]
[1735326020909,0.3628,94584.0,94579.0,1.552941]
[1735326021607,0.002,94584.0,94580.0,0.05294]
[1735326021907,0.002,94584.0,94582.0,0.052939]
[1735326022808,0.002,94584.0,94583.0,1.5]
[1735326023207,0.001,94584.0,94583.0,1.5]
[1735326023408,0.002,94584.0,94583.0,1.5]
[1735326023604,0.12651297,94603.0,94585.0,0.052938]
[1735326023802,0.052928,94602.0,94591.0,0.3608]
[1735326024401,0.12651297,94603.0,94585.0,0.052937]
[1735326024402,0.3608,94597.0,94585.0,0.052937]
[1735326024603,0.3608,94597.0,94583.0,1.5006]
[1735326024909,0.052929,94601.0,94590.0,0.052934]
[1735326026409,0.052929,94601.0,94587.0,0.3608]
[1735326026410,0.001,94602.0,94591.0,0.052934]
[1735326027314,0.001,94601.0,94591.0,0.052934]
[1735326027920,0.413726,94606.0,94591.0,0.052934]
[1735326028112,0.001,94602.0,94591.0,0.052934]
[1735326028908,0.001,94602.0,94600.0,0.052929]
[1735326029110,0.36076001,94606.0,94601.0,0.0711]
[1735326029508,0.36076001,94606.0,94605.0,0.052926]
[1735326029509,0.48727298,94606.0,94605.0,0.052926]
[1735326030618,0.36076001,94606.0,94605.0,1.56646086]
[1735326031412,0.36076001,94606.0,94605.0,1.51353486]
[1735326032613,0.36076001,94606.0,94605.0,0.01353486]
[1735326032913,0.36076001,94606.0,94596.0,0.413731]
[1735326033118,0.36076001,94606.0,94587.0,0.3157891]
[1735326033310,0.05293,94599.0,94587.0,0.3687251]
[1735326033712,0.05293,94599.0,94587.0,0.38207366]
[1735326034021,0.052931,94597.0,94587.0,0.01334856]
[1735326034208,0.052932,94594.0,94583.0,0.052938]
[1735326034409,0.052932,94594.0,94587.0,0.001]
[1735326035816,0.053932,94594.0,94583.0,0.053938]
[1735326036015,0.053932,94594.0,94583.0,0.06745993]
[1735326036412,0.053932,94594.0,94587.0,0.001]
[1735326036612,0.12651297,94592.0,94587.0,0.001]
[1735326036921,0.12651297,94592.0,94583.0,0.06645993]
[1735326037118,0.12651297,94592.0,94583.0,0.06745993]
[1735326037715,0.12651297,94592.0,94587.0,0.001]
[1735326038014,0.12651297,94591.0,94587.0,0.001]
[1735326038721,0.17944697,94591.0,94587.0,0.001]
[1735326039327,0.17944697,94591.0,94583.0,0.01352193]
[1735326039524,0.17944697,94591.0,94582.0,1.5006]
[1735326039720,0.17944697,94591.0,94582.0,1.5]
[1735326040024,0.18044697,94591.0,94582.0,1.5]
[1735326040627,0.18144697,94591.0,94582.0,1.5]
[1735326040817,0.12851297,94591.0,94582.0,1.552939]
[1735326041018,0.12651297,94587.0,94582.0,1.552939]
[1735326041626,0.12651297,94587.0,94583.0,0.052938]
[1735326041828,0.12651297,94587.0,94585.0,0.052937]
[1735326042025,0.12651297,94589.0,94588.0,0.052936]
[1735326042219,0.12651297,94589.0,94588.0,0.413736]
[1735326042723,0.12651297,94589.0,94588.0,1.913736]
[1735326043618,0.0373,94594.0,94588.0,1.8608]
[1735326043819,0.001,94589.0,94588.0,1.8608]
[1735326047025,0.052937,94586.0,94581.0,0.3157891]
[1735326047227,0.0373,94585.0,94581.0,0.3157891]
[1735326048731,0.15814121,94584.0,94571.0,0.01309298]
[1735326049023,0.15814121,94584.0,94568.0,1.86302596]
[1735326049231,0.15814121,94584.0,94568.0,1.86238596]
[1735326049431,0.12679048,94583.0,94568.0,1.86238596]
[1735326050923,0.12679048,94583.0,94568.0,1.87563371]
[1735326051731,0.12679048,94583.0,94568.0,0.37563371]
[1735326052232,0.12779048,94583.0,94568.0,0.37404775]
[1735326052622,0.12679048,94571.0,94568.0,0.37404775]
[1735326054934,0.12679048,94572.0,94568.0,0.37404775]
[1735326055639,0.001,94571.0,94568.0,0.37404775]
[1735326056234,0.12779048,94572.0,94568.0,0.01324775]
[1735326056431,0.12779048,94572.0,94557.0,0.413753]
[1735326056633,0.12779048,94572.0,94557.0,0.3608]
[1735326056634,0.46817817,94571.0,94557.0,0.3608]
[1735326056829,0.3977,94571.0,94557.0,0.3608]
[1735326057030,0.3987,94571.0,94557.0,0.3608]
[1735326057230,0.052946,94570.0,94557.0,0.3608]
[1735326057430,0.12679048,94563.0,94557.0,0.3608]
[1735326057831,0.0357,94562.0,94557.0,0.3608]
[1735326058738,0.0357,94562.0,94557.0,0.37437465]
[1735326059532,0.0367,94562.0,94557.0,0.37437465]
[1735326059731,0.0377,94562.0,94557.0,0.37437465]
[1735326060330,0.0377,94562.0,94557.0,0.36492465]
[1735326061541,0.0377,94562.0,94558.0,1.5]
[1735326062541,0.0367,94562.0,94558.0,1.5]
[1735326062940,0.0377,94562.0,94558.0,1.5]
[1735326064039,0.002,94562.0,94558.0,1.5]
[1735326064239,0.002,94562.0,94560.0,0.052951]
[1735326065237,0.001,94562.0,94560.0,0.052951]
[1735326065841,0.001,94562.0,94558.0,1.5006]
[1735326066043,0.001,94562.0,94558.0,1.5]
[1735326066840,0.001,94562.0,94557.0,0.68071375]
[1735326067046,0.002,94562.0,94557.0,0.68071375]
[1735326067343,0.002,94562.0,94557.0,2.18071375]
[1735326067641,0.002,94562.0,94558.0,0.19005411]
[1735326069442,0.001,94562.0,94558.0,0.19005411]
[1735326069647,0.002,94562.0,94558.0,0.19005411]
[1735326069845,0.001,94562.0,94558.0,0.19005411]
[1735326070047,0.001,94562.0,94557.0,1.86552465]
[1735326070048,0.002,94562.0,94557.0,1.86552465]
[1735326070230,0.002,94562.0,94557.0,1.86492465]
[1735326070749,0.002,94562.0,94557.0,0.36492465]
[1735326071548,0.001,94562.0,94557.0,0.36492465]
[1735326071739,0.002,94562.0,94557.0,0.36492465]
[1735326073145,0.052949,94564.0,94557.0,0.36492465]
[1735326073352,0.001,94562.0,94557.0,0.36492465]
[1735326073749,0.052949,94564.0,94557.0,0.36492465]
[1735326073944,0.001,94562.0,94557.0,0.36492465]
[1735326075654,0.17973948,94564.0,94557.0,0.36492465]
[1735326075853,0.15814121,94561.0,94557.0,0.01357465]
[1735326076052,0.15814121,94561.0,94553.0,1.50068]
[1735326076348,0.15814121,94561.0,94553.0,1.5]
[1735326076539,0.15814121,94561.0,94553.0,1.51293552]
[1735326076945,0.15814121,94556.0,94553.0,1.51293552]
[1735326078745,0.15814121,94557.0,94553.0,1.51293552]
[1735326078946,0.15814121,94557.0,94553.0,0.01293552]
[1735326079144,0.15814121,94557.0,94549.0,0.0015863]
[1735326079350,0.0382,94556.0,94549.0,0.0015863]
[1735326079555,0.0392,94556.0,94549.0,0.01417515]
[1735326079952,0.001,94556.0,94549.0,0.01417515]
[1735326080148,0.15914121,94557.0,94549.0,0.01417515]
[1735326080355,0.15814121,94556.0,94549.0,0.01417515]
[1735326080662,0.15814121,94556.0,94549.0,0.00538515]
[1735326080845,0.15814121,94556.0,94546.0,0.413759]
[1735326081454,0.15814121,94556.0,94547.0,0.0262]
[1735326081755,0.12685082,94558.0,94552.0,0.19005411]
[1735326081945,0.001,94556.0,94552.0,0.19005411]
[1735326082651,0.052956,94551.0,94550.0,0.19005411]
[1735326082857,0.05296,94545.0,94544.0,0.18557301]
[1735326084455,0.55088237,94546.0,94534.0,0.01235824]
[1735326084655,0.3608,94535.0,94530.0,0.00158651]
[1735326085355,0.3608,94535.0,94530.0,0.01417955]
[1735326085556,0.3608,94535.0,94530.0,0.00158651]
[1735326086058,0.3628,94535.0,94530.0,0.00158651]
[1735326086552,0.3608,94532.0,94530.0,0.00158651]
[1735326087351,0.413767,94532.0,94530.0,0.00158651]
[1735326088559,0.54049541,94532.0,94530.0,0.00158651]
[1735326088763,0.54149541,94532.0,94530.0,0.00158651]
[1735326089658,0.12672841,94531.0,94530.0,0.00158651]
[1735326090556,0.12672841,94531.0,94530.0,0.052968]
[1735326090857,0.06487655,94531.0,94530.0,0.052968]
[1735326091061,0.02130749,94532.0,94530.0,0.052968]
[1735326091265,0.02130749,94532.0,94531.0,0.0783]
[1735326092155,0.38210749,94532.0,94524.0,0.01228409]
[1735326092355,0.38210749,94532.0,94514.0,0.052976]
[1735326092356,0.38210749,94532.0,94514.0,0.0391]
[1735326092664,0.052971,94526.0,94514.0,0.0391]
[1735326093549,0.052971,94526.0,94515.0,0.3731857]
[1735326093753,0.053971,94526.0,94515.0,0.3731857]
[1735326098369,0.3608,94516.0,94515.0,0.0123857]
[1735326098559,0.052977,94514.0,94511.0,0.00158706]
[1735326098761,0.052978,94513.0,94511.0,0.00158706]
[1735326100361,0.053978,94513.0,94511.0,0.00158706]
[1735326101065,0.053978,94513.0,94511.0,0.00038706]
[1735326107271,0.001,94513.0,94511.0,0.00038706]
[1735326109767,0.001,94513.0,94512.0,0.3608]
[1735326109958,0.001,94513.0,94512.0,0.4371]
[1735326110360,0.15841051,94522.0,94512.0,0.4371]
[1735326110576,0.15741051,94522.0,94521.0,0.052973]
[1735326111470,0.3608,94535.0,94521.0,0.052973]
[1735326112973,0.3608,94535.0,94521.0,0.054973]
[1735326113663,0.3608,94535.0,94521.0,0.002]
[1735326114283,0.3608,94535.0,94525.0,0.05297]
[1735326114470,0.052966,94534.0,94521.0,0.002]
[1735326115271,0.052966,94534.0,94521.0,0.01431911]
[1735326115472,0.052966,94534.0,94521.0,0.002]
[1735326117077,0.052966,94534.0,94521.0,0.01454039]
[1735326117280,0.052966,94534.0,94521.0,0.002]
[1735326117570,0.3608,94527.0,94521.0,0.002]
[1735326117963,0.052972,94523.0,94521.0,0.002]
[1735326118771,0.052972,94523.0,94520.0,0.012104]
[1735326119080,0.052972,94523.0,94521.0,0.002]
[1735326119468,0.3608,94527.0,94521.0,0.002]
[1735326119670,0.3608,94527.0,94523.0,0.052972]
[1735326119871,0.3608,94527.0,94521.0,0.01444273]
[1735326120073,0.19008237,94531.0,94521.0,0.052973]
[1735326120271,0.19008237,94542.0,94530.0,0.3608]
[1735326120473,0.19008237,94542.0,94531.0,0.0774]
[1735326121576,0.00358723,94536.0,94531.0,0.0764]
[1735326122673,0.00358723,94536.0,94531.0,0.0888242]
[1735326122874,0.00558723,94536.0,94531.0,0.0888242]
[1735326123588,0.00558723,94536.0,94532.0,1.5]
[1735326123780,0.00358723,94536.0,94532.0,1.5]
[1735326123969,0.00558723,94536.0,94532.0,1.5]
[1735326124578,0.00358723,94536.0,94532.0,1.5]
[1735326124776,0.00558723,94536.0,94532.0,1.5]
[1735326125081,0.00358723,94536.0,94532.0,1.5]
[1735326125280,0.413766,94533.0,94531.0,0.0124242]
[1735326125486,0.413766,94533.0,94512.0,0.3157891]
[1735326125487,0.3608,94533.0,94512.0,0.3157891]
[1735326125682,0.3608,94523.0,94512.0,0.3157891]
[1735326126585,0.3608,94523.0,94512.0,0.01233519]
[1735326126886,0.3608,94523.0,94511.0,1.50098706]
[1735326127087,0.3608,94523.0,94511.0,1.50038706]
[1735326127284,0.3608,94523.0,94512.0,0.052978]
[1735326127691,0.05153176,94522.0,94512.0,0.052978]
[1735326128287,0.05153176,94522.0,94512.0,0.058978]
[1735326128489,0.05153176,94522.0,94512.0,0.006]
[1735326128687,0.05153176,94522.0,94511.0,1.50198706]
[1735326128688,0.05153176,94522.0,94511.0,1.51445573]
[1735326128889,0.05253176,94522.0,94512.0,0.006]
[1735326129300,0.15990993,94522.0,94512.0,0.006]
[1735326129992,0.052975,94518.0,94511.0,1.52045573]
[1735326130293,0.052975,94518.0,94511.0,1.51985573]
[1735326130592,0.19008237,94520.0,94512.0,0.001]
[1735326131297,0.05153176,94521.0,94511.0,1.51945573]
[1735326131298,0.05153176,94517.0,94511.0,1.52045573]
[1735326131484,0.05153176,94517.0,94511.0,1.51985573]
[1735326131996,0.05153176,94517.0,94511.0,1.51885573]
[1735326132190,0.05153176,94517.0,94512.0,0.001]
[1735326132493,0.05153176,94517.0,94512.0,0.006]
[1735326132683,0.05153176,94520.0,94512.0,0.006]
[1735326132882,0.052974,94519.0,94512.0,0.001]
[1735326133790,0.052974,94519.0,94511.0,1.51745573]
[1735326133991,0.052974,94519.0,94511.0,1.51785573]
[1735326134190,0.052974,94519.0,94511.0,0.01785573]
[1735326134394,0.09490555,94514.0,94511.0,0.01785573]
[1735326134692,0.09490555,94514.0,94512.0,0.005]
[1735326134900,0.0368,94513.0,94512.0,0.005]
[1735326135079,0.0368,94513.0,94512.0,0.001]
[1735326135494,0.0368,94513.0,94511.0,0.01785573]
[1735326135798,0.089778,94513.0,94512.0,0.003]
[1735326136993,0.18468355,94513.0,94512.0,0.004]
[1735326138090,0.089778,94513.0,94512.0,0.004]
[1735326140483,0.127778,94513.0,94512.0,0.004]
[1735326142198,0.127778,94513.0,94512.0,0.00368]
[1735326144313,0.127778,94513.0,94512.0,0.004]
[1735326144688,0.127778,94513.0,94512.0,0.001]
[1735326144893,0.127778,94513.0,94512.0,0.004]
[1735326146101,0.127778,94513.0,94512.0,0.003]
[1735326146301,0.0748,94513.0,94500.0,0.1]
[1735326146507,0.3598,94503.0,94500.0,0.11477525]
[1735326146693,0.3598,94503.0,94501.0,1.5]
[1735326147605,0.09488259,94502.0,94501.0,1.5]
[1735326148607,0.45468259,94503.0,94501.0,1.5]
[1735326149013,0.001,94502.0,94501.0,1.505]
[1735326149201,0.001,94502.0,94501.0,1.506]
[1735326150206,0.3608,94503.0,94501.0,1.505]
[1735326150908,0.3608,94503.0,94501.0,0.005]
[1735326151700,0.3598,94503.0,94501.0,0.001]
[1735326151903,0.001,94502.0,94501.0,0.006]
[1735326152205,0.001,94502.0,94501.0,0.005]
[1735326152405,0.3598,94503.0,94501.0,0.056984]
[1735326152800,0.3598,94503.0,94502.0,1.5]
[1735326154201,0.3598,94503.0,94501.0,0.055984]
[1735326154396,0.05153951,94503.0,94501.0,0.052984]
[1735326154604,0.05153951,94503.0,94501.0,0.055984]
[1735326154908,0.22165575,94519.0,94502.0,1.5]
[1735326155111,0.19973349,94519.0,94517.0,0.3608]
[1735326155311,0.19973349,94519.0,94518.0,0.1185]
[1735326155907,0.15842466,94519.0,94518.0,0.1185]
[1735326156214,0.15842466,94519.0,94518.0,0.171475]
[1735326156413,0.16142466,94519.0,94518.0,0.171475]
[1735326156615,0.16142466,94519.0,94518.0,1.671475]
[1735326156913,0.16342466,94519.0,94518.0,1.671475]
[1735326157418,0.005,94519.0,94518.0,1.9250834]
[1735326157909,0.005,94519.0,94518.0,0.2536084]
[1735326158310,0.002,94519.0,94518.0,0.2536084]
[1735326158509,0.005,94519.0,94518.0,0.2536084]
[1735326160012,0.005,94519.0,94517.0,0.052975]
[1735326161008,0.005,94519.0,94517.0,0.06750934]
[1735326162309,0.09504537,94526.0,94517.0,0.06720934]
[1735326162516,0.004,94519.0,94517.0,0.06720934]
[1735326162912,0.001,94519.0,94517.0,0.06720934]
[1735326163113,0.003,94519.0,94517.0,0.06720934]
[1735326164108,0.003,94519.0,94517.0,0.42800934]
[1735326164413,0.12672716,94518.0,94517.0,0.42800934]
[1735326165412,0.09496459,94518.0,94517.0,0.42800934]
[1735326165612,0.09696459,94518.0,94517.0,0.42800934]
[1735326166322,0.09796459,94518.0,94517.0,0.42800934]
[1735326166511,0.001,94518.0,94517.0,0.42800934]
[1735326166711,0.001,94518.0,94517.0,0.43000934]
[1735326166911,0.09496459,94521.0,94517.0,0.37733434]
[1735326167112,0.09496459,94521.0,94520.0,0.052973]
[1735326167922,0.12672716,94525.0,94522.0,0.052972]
[1735326168925,0.12672716,94525.0,94520.0,0.001]
[1735326169329,0.12672716,94525.0,94517.0,0.37533434]
[1735326169623,0.0804,94524.0,94517.0,0.37533434]
[1735326170011,0.12672716,94518.0,94517.0,0.37533434]
[1735326172617,0.12672716,94518.0,94517.0,0.37733434]
[1735326172819,0.23882466,94524.0,94517.0,0.37733434]
[1735326172820,0.09494137,94520.0,94517.0,0.37733434]
[1735326173016,0.09494137,94520.0,94517.0,0.01653434]
[1735326173017,0.052973,94519.0,94517.0,0.01653434]
[1735326173223,0.052973,94519.0,94508.0,0.2536084]
[1735326173224,0.052979,94509.0,94508.0,0.2536084]
[1735326173415,0.413779,94509.0,94508.0,0.2536084]
[1735326173723,0.412779,94509.0,94508.0,0.2536084]
[1735326174931,0.412779,94509.0,94502.0,0.01444937]
[1735326175223,0.412779,94509.0,94492.0,0.413788]
[1735326175629,0.412779,94509.0,94508.0,0.002]
[1735326176031,0.53950616,94509.0,94508.0,0.002]
[1735326176333,0.53950616,94509.0,94502.0,0.004]
[1735326176634,0.53950616,94509.0,94500.0,0.11420172]
[1735326176927,0.53950616,94509.0,94508.0,0.001]
[1735326180237,0.412779,94509.0,94508.0,0.001]
[1735326181130,0.57120366,94509.0,94508.0,0.001]
[1735326181336,0.052983,94502.0,94500.0,0.1]
[1735326181536,0.0804,94501.0,94500.0,0.1]
[1735326182234,0.4412,94501.0,94500.0,0.1]
[1735326182433,0.4412,94501.0,94500.0,0.105]
[1735326186734,0.12648796,94504.0,94503.0,0.052982]
[1735326187034,0.12648796,94504.0,94503.0,0.413782]
[1735326187435,0.12648796,94504.0,94503.0,1.913782]
[1735326187834,0.15842466,94511.0,94508.0,0.052979]
[1735326188043,0.09482334,94524.0,94509.0,0.090079]
[1735326188233,0.09482334,94524.0,94512.0,0.3608]
[1735326189348,0.05297,94525.0,94512.0,0.3608]
[1735326189535,0.052972,94522.0,94512.0,0.3608]
[1735326189736,0.052976,94516.0,94509.0,0.001]
[1735326190733,0.3608,94522.0,94509.0,0.001]
[1735326190936,0.3608,94522.0,94514.0,0.3608]
[1735326191145,0.3608,94522.0,94509.0,0.052979]
[1735326191540,0.3608,94522.0,94509.0,0.06971381]
[1735326191734,0.3608,94522.0,94510.0,0.10737817]
[1735326191931,0.3608,94522.0,94509.0,0.06971381]